[Event "*** SCC Grand Prix: Titled Tuesday Blitz"]
[Site "Chess.com"]
[Date "2020.07.07"]
[Round "8"]
[White "frederiksvane"]
[Black "FMJoseHerrera"]
[Result "1-0"]
[WhiteElo "2664"]
[BlackElo "2491"]
[TimeControl "180+1"]
[EndTime "11:36:12 PDT"]
[Termination "frederiksvane won by resignation"]

1. e4 {[%clk 0:03:00.9]} 1... c5 {[%clk 0:02:59.2]} 2. Nf3 {[%clk 0:03:00.4]}
2... e6 {[%clk 0:02:59.6]} 3. d4 {[%clk 0:03:00.6]} 3... cxd4 {[%clk 0:03:00.1]}
4. Nxd4 {[%clk 0:03:01.5]} 4... a6 {[%clk 0:03:00.3]} 5. Nc3 {[%clk 0:03:00.9]}
5... Qc7 {[%clk 0:03:00.8]} 6. g3 {[%clk 0:03:01.2]} 6... b5 {[%clk 0:03:01.1]}
7. Bg2 {[%clk 0:03:00.3]} 7... Bb7 {[%clk 0:03:01.8]} 8. O-O {[%clk 0:02:59.3]}
8... d6 {[%clk 0:03:02.3]} 9. Re1 {[%clk 0:02:57.3]} 9... Be7 {[%clk 0:03:02.4]}
10. a4 {[%clk 0:02:54.7]} 10... b4 {[%clk 0:03:02.1]} 11. Nd5 {[%clk 0:02:55]}
11... Qd8 {[%clk 0:02:56.7]} 12. Nxb4 {[%clk 0:02:42]} 12... d5 {[%clk
0:02:43.8]} 13. Nxd5 {[%clk 0:02:24.6]} 13... exd5 {[%clk 0:02:42.9]} 14. exd5
{[%clk 0:02:24.9]} 14... Kf8 {[%clk 0:02:43.8]} 15. d6 {[%clk 0:02:12.8]} 15...
Bxg2 {[%clk 0:02:37.8]} 16. dxe7+ {[%clk 0:02:12.9]} 16... Nxe7 {[%clk
0:02:38.2]} 17. Kxg2 {[%clk 0:02:13.1]} 17... Qd5+ {[%clk 0:02:39.1]} 18. Qf3
{[%clk 0:02:10.1]} 18... Qxf3+ {[%clk 0:02:38.8]} 19. Nxf3 {[%clk 0:02:10.2]}
19... Nbc6 {[%clk 0:02:39.7]} 20. Be3 {[%clk 0:02:04]} 20... f6 {[%clk
0:02:39.1]} 21. Rad1 {[%clk 0:01:56.1]} 21... Kf7 {[%clk 0:02:38.9]} 22. Rd7
{[%clk 0:01:56.1]} 22... Rhd8 {[%clk 0:02:39.1]} 23. Rc7 {[%clk 0:01:53]} 23...
Rac8 {[%clk 0:02:39]} 24. Rxc8 {[%clk 0:01:50.8]} 24... Rxc8 {[%clk 0:02:39.9]}
25. Rd1 {[%clk 0:01:44]} 25... Nb4 {[%clk 0:02:38.8]} 26. c3 {[%clk 0:01:40]}
26... Nbd5 {[%clk 0:02:39]} 27. Bc1 {[%clk 0:01:34.5]} 27... Nb6 {[%clk
0:02:37.3]} 28. Rd6 {[%clk 0:01:25.9]} 28... Nxa4 {[%clk 0:02:36.2]} 29. Rxa6
{[%clk 0:01:26.1]} 29... Nc5 {[%clk 0:02:37.1]} 30. Rd6 {[%clk 0:01:26]} 30...
Nf5 {[%clk 0:02:35.9]} 31. Rd1 {[%clk 0:01:21.6]} 31... Nb3 {[%clk 0:02:28]} 32.
g4 {[%clk 0:01:03.7]} 32... Ne7 {[%clk 0:02:26.1]} 33. Be3 {[%clk 0:01:02.1]}
33... Ke8 {[%clk 0:02:22.2]} 34. Nd4 {[%clk 0:00:59.1]} 34... Nc5 {[%clk
0:02:21.4]} 35. f3 {[%clk 0:00:45.4]} 35... Na4 {[%clk 0:02:19.3]} 36. Bc1
{[%clk 0:00:44.6]} 36... Kf7 {[%clk 0:02:17.2]} 37. Kf2 {[%clk 0:00:42.5]} 37...
Nd5 {[%clk 0:02:16.1]} 38. Nf5 {[%clk 0:00:34.7]} 38... Rc5 {[%clk 0:02:12.2]}
39. Rd4 {[%clk 0:00:29.2]} 39... Nab6 {[%clk 0:02:09.2]} 40. c4 {[%clk
0:00:28.6]} 40... Rxc4 {[%clk 0:02:08.9]} 41. Nd6+ {[%clk 0:00:28.4]} 41... Ke6
{[%clk 0:02:04.8]} 42. Nxc4 {[%clk 0:00:28.6]} 42... Nd7 {[%clk 0:02:04.8]} 43.
Re4+ {[%clk 0:00:28.2]} 43... Kf7 {[%clk 0:02:04.7]} 44. Nd6+ {[%clk 0:00:28.6]}
44... Kg6 {[%clk 0:02:05.4]} 45. h4 {[%clk 0:00:28.8]} 45... h5 {[%clk
0:02:05.2]} 46. gxh5+ {[%clk 0:00:27.9]} 46... Kxh5 {[%clk 0:02:06.1]} 47. Rg4
{[%clk 0:00:27.9]} 47... g6 {[%clk 0:02:03.8]} 48. b4 {[%clk 0:00:26]} 48... Ne5
{[%clk 0:02:04.2]} 49. Rd4 {[%clk 0:00:25.7]} 49... Nxb4 {[%clk 0:02:03.4]} 50.
Bf4 {[%clk 0:00:19.7]} 50... Ned3+ {[%clk 0:02:02.2]} 51. Ke3 {[%clk 0:00:19.2]}
51... Nxf4 {[%clk 0:01:58.9]} 52. Kxf4 {[%clk 0:00:20.1]} 52... Nc2 {[%clk
0:01:58.3]} 53. Rc4 {[%clk 0:00:17.1]} 53... Ne1 {[%clk 0:01:58]} 54. Kg3 {[%clk
0:00:13.4]} 54... Nd3 {[%clk 0:01:57.5]} 55. Ne4 {[%clk 0:00:13]} 55... f5
{[%clk 0:01:56.4]} 56. Rc7 {[%clk 0:00:09]} 56... g5 {[%clk 0:01:35.9]} 57. Nxg5
{[%clk 0:00:09.4]} 57... f4+ {[%clk 0:01:35.9]} 58. Kh3 {[%clk 0:00:08.7]} 58...
Nf2+ {[%clk 0:01:36.2]} 59. Kg2 {[%clk 0:00:09.2]} 59... Nd3 {[%clk 0:01:36.8]}
60. Rh7+ {[%clk 0:00:09.4]} 60... Kg6 {[%clk 0:01:37.2]} 61. Rd7 {[%clk
0:00:09.8]} 61... Ne5 {[%clk 0:01:34.8]} 62. Rd6+ {[%clk 0:00:09.9]} 62... Kf5
{[%clk 0:01:35.3]} 63. Rd5 {[%clk 0:00:10.1]} 63... Kf6 {[%clk 0:01:34.9]} 64.
Rxe5 {[%clk 0:00:11]} 64... Kxe5 {[%clk 0:01:35.4]} 65. Kh3 {[%clk 0:00:11.9]}
65... Kf5 {[%clk 0:01:36.3]} 66. Ne4 {[%clk 0:00:12.5]} 1-0

[Event "*** SCC Grand Prix: Titled Tuesday Blitz"]
[Site "Chess.com"]
[Date "2020.07.07"]
[Round "8"]
[White "Barmen_EV"]
[Black "stanyga"]
[Result "0-1"]
[WhiteElo "2463"]
[BlackElo "2622"]
[TimeControl "180+1"]
[EndTime "11:36:14 PDT"]
[Termination "stanyga won by checkmate"]

1. d4 {[%clk 0:02:58.1]} 1... d5 {[%clk 0:02:59.8]} 2. c4 {[%clk 0:02:59]} 2...
c6 {[%clk 0:02:59.8]} 3. Nc3 {[%clk 0:02:58.2]} 3... Nf6 {[%clk 0:02:59.9]} 4.
Nf3 {[%clk 0:02:58.4]} 4... e6 {[%clk 0:03:00.1]} 5. e3 {[%clk 0:02:58]} 5...
Nbd7 {[%clk 0:02:59.9]} 6. Qc2 {[%clk 0:02:58.5]} 6... Bd6 {[%clk 0:02:57.3]} 7.
b3 {[%clk 0:02:59.4]} 7... O-O {[%clk 0:02:50.1]} 8. Bb2 {[%clk 0:03:00.3]} 8...
e5 {[%clk 0:02:50]} 9. Be2 {[%clk 0:03:00.8]} 9... e4 {[%clk 0:02:49]} 10. Nd2
{[%clk 0:03:00.3]} 10... a6 {[%clk 0:02:41.7]} 11. O-O-O {[%clk 0:02:13.5]}
11... b5 {[%clk 0:02:28.3]} 12. c5 {[%clk 0:02:12.3]} 12... Bc7 {[%clk
0:02:26.8]} 13. g4 {[%clk 0:02:13.2]} 13... a5 {[%clk 0:02:19.3]} 14. g5 {[%clk
0:02:11.6]} 14... Ne8 {[%clk 0:02:18.3]} 15. h4 {[%clk 0:02:11.8]} 15... b4
{[%clk 0:02:10]} 16. Na4 {[%clk 0:02:11]} 16... Ba6 {[%clk 0:02:08.5]} 17. Bxa6
{[%clk 0:02:07]} 17... Rxa6 {[%clk 0:02:08]} 18. f3 {[%clk 0:02:07.9]} 18...
exf3 {[%clk 0:02:01.7]} 19. Nxf3 {[%clk 0:02:08.8]} 19... f5 {[%clk 0:01:51.6]}
20. gxf6 {[%clk 0:02:06.6]} 20... Nexf6 {[%clk 0:01:51]} 21. Ng5 {[%clk
0:02:06]} 21... Qe7 {[%clk 0:01:47.8]} 22. Kb1 {[%clk 0:01:50]} 22... Raa8
{[%clk 0:01:37.4]} 23. Rde1 {[%clk 0:01:21.5]} 23... Rae8 {[%clk 0:01:33.2]} 24.
e4 {[%clk 0:01:13]} 24... h6 {[%clk 0:01:04.5]} 25. e5 {[%clk 0:00:49.2]} 25...
hxg5 {[%clk 0:01:03.1]} 26. hxg5 {[%clk 0:00:50.1]} 26... Ne4 {[%clk 0:00:59.8]}
27. Rxe4 {[%clk 0:00:43.2]} 27... dxe4 {[%clk 0:00:58.8]} 28. Qxe4 {[%clk
0:00:44.1]} 28... Qe6 {[%clk 0:00:40.5]} 29. Qh7+ {[%clk 0:00:22.1]} 29... Kf7
{[%clk 0:00:40.5]} 30. Rf1+ {[%clk 0:00:20.1]} 30... Ke7 {[%clk 0:00:40.6]} 31.
Qxg7+ {[%clk 0:00:21]} 31... Kd8 {[%clk 0:00:39.9]} 32. Rf6 {[%clk 0:00:13]}
32... Nxf6 {[%clk 0:00:36]} 33. gxf6 {[%clk 0:00:13.9]} 33... Rxf6 {[%clk
0:00:28.8]} 34. exf6 {[%clk 0:00:13.2]} 34... Qe4+ {[%clk 0:00:28.6]} 35. Kc1
{[%clk 0:00:03.9]} 35... Bf4+ {[%clk 0:00:28.1]} 36. Kd1 {[%clk 0:00:02.5]}
36... Qd3# {[%clk 0:00:28.2]} 0-1

[Event "*** SCC Grand Prix: Titled Tuesday Blitz"]
[Site "Chess.com"]
[Date "2020.07.07"]
[Round "8"]
[White "wild_cat99"]
[Black "karinachess1"]
[Result "1-0"]
[WhiteElo "2604"]
[BlackElo "2497"]
[TimeControl "180+1"]
[EndTime "11:36:14 PDT"]
[Termination "wild_cat99 won by checkmate"]

1. Nf3 {[%clk 0:03:00.9]} 1... Nf6 {[%clk 0:02:56.6]} 2. c4 {[%clk 0:03:00.6]}
2... e6 {[%clk 0:02:55]} 3. e3 {[%clk 0:03:00.3]} 3... d5 {[%clk 0:02:53]} 4. b3
{[%clk 0:03:00.8]} 4... Be7 {[%clk 0:02:52.1]} 5. Bb2 {[%clk 0:03:00.1]} 5... b6
{[%clk 0:02:52.1]} 6. g3 {[%clk 0:03:00]} 6... Bb7 {[%clk 0:02:49.9]} 7. Bg2
{[%clk 0:03:00.2]} 7... O-O {[%clk 0:02:44.1]} 8. O-O {[%clk 0:03:00.1]} 8... c5
{[%clk 0:02:38.4]} 9. Nh4 {[%clk 0:02:55.3]} 9... Nbd7 {[%clk 0:02:29.7]} 10. f4
{[%clk 0:02:54.1]} 10... Qc7 {[%clk 0:02:23]} 11. Nc3 {[%clk 0:02:40.2]} 11...
dxc4 {[%clk 0:02:14.1]} 12. bxc4 {[%clk 0:02:28.3]} 12... Bxg2 {[%clk
0:02:13.7]} 13. Nxg2 {[%clk 0:02:29.2]} 13... Qc6 {[%clk 0:02:11.5]} 14. Qe2
{[%clk 0:02:28.8]} 14... Rfd8 {[%clk 0:01:49.3]} 15. e4 {[%clk 0:02:26.1]} 15...
Ne8 {[%clk 0:01:22.2]} 16. g4 {[%clk 0:02:16.5]} 16... a6 {[%clk 0:01:10.8]} 17.
a4 {[%clk 0:02:10.3]} 17... Nc7 {[%clk 0:01:07.2]} 18. Ne3 {[%clk 0:01:52]}
18... Rab8 {[%clk 0:01:05.6]} 19. g5 {[%clk 0:01:43.4]} 19... b5 {[%clk
0:01:05]} 20. axb5 {[%clk 0:01:43.3]} 20... axb5 {[%clk 0:01:05.9]} 21. cxb5
{[%clk 0:01:40.4]} 21... Nxb5 {[%clk 0:01:06.8]} 22. Nxb5 {[%clk 0:01:39.9]}
22... Rxb5 {[%clk 0:01:01.8]} 23. Nc4 {[%clk 0:01:37.3]} 23... Rb4 {[%clk
0:01:01.4]} 24. Bc3 {[%clk 0:01:35.7]} 24... Rbb8 {[%clk 0:00:57.2]} 25. h4
{[%clk 0:01:31]} 25... Nb6 {[%clk 0:00:49.9]} 26. Nxb6 {[%clk 0:01:25.3]} 26...
Qxb6 {[%clk 0:00:48.5]} 27. Ba5 {[%clk 0:01:25.3]} 27... Qd6 {[%clk 0:00:40.6]}
28. Bxd8 {[%clk 0:01:24.6]} 28... Bxd8 {[%clk 0:00:40.4]} 29. Ra3 {[%clk
0:01:14.2]} 29... c4 {[%clk 0:00:33.1]} 30. Raf3 {[%clk 0:01:11.2]} 30... Bb6+
{[%clk 0:00:33]} 31. Kh1 {[%clk 0:01:05.6]} 31... Rd8 {[%clk 0:00:32.7]} 32. f5
{[%clk 0:01:02.6]} 32... e5 {[%clk 0:00:23.8]} 33. f6 {[%clk 0:00:50.2]} 33...
g6 {[%clk 0:00:20.7]} 34. h5 {[%clk 0:00:50.5]} 34... gxh5 {[%clk 0:00:17]} 35.
Rh3 {[%clk 0:00:40.4]} 35... Qxd2 {[%clk 0:00:16]} 36. Qxh5 {[%clk 0:00:38.3]}
36... Kf8 {[%clk 0:00:14.7]} 37. Qxh7 {[%clk 0:00:32.8]} 37... Ke8 {[%clk
0:00:12.1]} 38. Qg8+ {[%clk 0:00:33.1]} 38... Kd7 {[%clk 0:00:12.2]} 39. Qxf7+
{[%clk 0:00:33.3]} 39... Kc6 {[%clk 0:00:07.5]} 40. Qxc4+ {[%clk 0:00:33.4]}
40... Kb7 {[%clk 0:00:07.7]} 41. Rh7+ {[%clk 0:00:29.1]} 41... Kb8 {[%clk
0:00:06.6]} 42. Qc6 {[%clk 0:00:26.3]} 42... Qe3 {[%clk 0:00:05.5]} 43. Qb7#
{[%clk 0:00:26]} 1-0

[Event "*** SCC Grand Prix: Titled Tuesday Blitz"]
[Site "Chess.com"]
[Date "2020.07.07"]
[Round "8"]
[White "Artem_Koval"]
[Black "mjray79"]
[Result "0-1"]
[WhiteElo "2422"]
[BlackElo "2330"]
[TimeControl "180+1"]
[EndTime "11:36:15 PDT"]
[Termination "mjray79 won on time"]

1. e4 {[%clk 0:03:00.9]} 1... e5 {[%clk 0:03:00.5]} 2. d4 {[%clk 0:03:00.2]}
2... exd4 {[%clk 0:02:59.4]} 3. Bc4 {[%clk 0:03:00.7]} 3... Nc6 {[%clk 0:02:58]}
4. Nf3 {[%clk 0:03:01]} 4... Bc5 {[%clk 0:02:57.5]} 5. O-O {[%clk 0:03:00]} 5...
Nf6 {[%clk 0:02:55.2]} 6. c3 {[%clk 0:03:00.4]} 6... Nxe4 {[%clk 0:02:49.3]} 7.
cxd4 {[%clk 0:02:54.6]} 7... d5 {[%clk 0:02:46.7]} 8. dxc5 {[%clk 0:02:53.8]}
8... dxc4 {[%clk 0:02:46.2]} 9. Qe2 {[%clk 0:02:53]} 9... Qd3 {[%clk 0:02:45.3]}
10. Re1 {[%clk 0:02:42.5]} 10... f5 {[%clk 0:02:36.6]} 11. Nc3 {[%clk
0:02:32.9]} 11... O-O {[%clk 0:02:32]} 12. Nxe4 {[%clk 0:02:30.2]} 12... fxe4
{[%clk 0:02:30.4]} 13. Qxe4 {[%clk 0:02:30]} 13... Bf5 {[%clk 0:02:29.7]} 14.
Qh4 {[%clk 0:02:16.1]} 14... Bg6 {[%clk 0:02:21.7]} 15. Bf4 {[%clk 0:01:55.6]}
15... Qf5 {[%clk 0:02:13.1]} 16. Bxc7 {[%clk 0:01:50]} 16... Qxc5 {[%clk
0:02:10.6]} 17. Rad1 {[%clk 0:01:45.1]} 17... Bd3 {[%clk 0:02:04.4]} 18. b3
{[%clk 0:01:35.2]} 18... Rxf3 {[%clk 0:01:59.9]} 19. gxf3 {[%clk 0:01:34.5]}
19... Nd4 {[%clk 0:01:59.8]} 20. Qe7 {[%clk 0:01:06.6]} 20... Nxf3+ {[%clk
0:01:55.7]} 21. Kg2 {[%clk 0:01:01.6]} 21... Nxe1+ {[%clk 0:01:48.1]} 22. Rxe1
{[%clk 0:01:02.5]} 22... Qxe7 {[%clk 0:01:39.9]} 23. Rxe7 {[%clk 0:01:03.4]}
23... c3 {[%clk 0:01:36.2]} 24. Be5 {[%clk 0:01:03.8]} 24... Rc8 {[%clk
0:01:29.9]} 25. Rxg7+ {[%clk 0:01:01.7]} 25... Kf8 {[%clk 0:01:29.3]} 26. Rc7
{[%clk 0:00:53.5]} 26... Rxc7 {[%clk 0:01:16.8]} 27. Bxc7 {[%clk 0:00:54.4]}
27... Bb1 {[%clk 0:01:13]} 28. a3 {[%clk 0:00:53.6]} 28... Ba2 {[%clk
0:01:10.4]} 29. b4 {[%clk 0:00:54]} 29... Bd5+ {[%clk 0:01:10.2]} 30. Kg3 {[%clk
0:00:53.2]} 30... Ke7 {[%clk 0:01:09.7]} 31. Be5 {[%clk 0:00:19.1]} 31... c2
{[%clk 0:01:09.3]} 32. Bb2 {[%clk 0:00:20]} 32... Ke6 {[%clk 0:01:08.7]} 33. Kf4
{[%clk 0:00:20.4]} 33... Bc6 {[%clk 0:01:06.3]} 34. Ke3 {[%clk 0:00:20.5]} 34...
Kf5 {[%clk 0:01:05.1]} 35. f3 {[%clk 0:00:15.6]} 35... Kg5 {[%clk 0:01:03]} 36.
Kd2 {[%clk 0:00:14.7]} 36... Ba4 {[%clk 0:01:02]} 37. Ke3 {[%clk 0:00:13.1]}
37... Kh4 {[%clk 0:01:00.5]} 38. Kd2 {[%clk 0:00:08.1]} 38... Kh3 {[%clk
0:00:59.3]} 39. Be5 {[%clk 0:00:08.5]} 39... Kh4 {[%clk 0:00:55.4]} 40. Bg3+
{[%clk 0:00:05.1]} 40... Kg5 {[%clk 0:00:54.8]} 41. Kc1 {[%clk 0:00:02.4]} 41...
Kf5 {[%clk 0:00:54.7]} 42. Kd2 {[%clk 0:00:02.8]} 42... Ke6 {[%clk 0:00:54.7]}
43. Bf4 {[%clk 0:00:02.8]} 43... Kd5 {[%clk 0:00:54.6]} 44. Kc3 {[%clk
0:00:02.7]} 44... Ke6 {[%clk 0:00:52.8]} 45. Be3 {[%clk 0:00:03.2]} 45... Kf5
{[%clk 0:00:50.4]} 46. Bxa7 {[%clk 0:00:03]} 46... c1=Q+ {[%clk 0:00:49.5]} 47.
Kd4 {[%clk 0:00:02.7]} 47... Qg1+ {[%clk 0:00:48]} 48. Kd5 {[%clk 0:00:02.3]}
48... Qxa7 {[%clk 0:00:46.9]} 0-1

[Event "*** SCC Grand Prix: Titled Tuesday Blitz"]
[Site "Chess.com"]
[Date "2020.07.07"]
[Round "8"]
[White "Semetey"]
[Black "MiroVlasenko"]
[Result "1-0"]
[WhiteElo "2483"]
[BlackElo "2609"]
[TimeControl "180+1"]
[EndTime "11:36:17 PDT"]
[Termination "Semetey won by resignation"]

1. Nf3 {[%clk 0:03:00.9]} 1... Nf6 {[%clk 0:02:59.1]} 2. g3 {[%clk 0:03:01.8]}
2... b6 {[%clk 0:02:58.9]} 3. Bg2 {[%clk 0:03:01.2]} 3... Bb7 {[%clk 0:02:59.4]}
4. O-O {[%clk 0:03:00.8]} 4... e6 {[%clk 0:02:57.4]} 5. d3 {[%clk 0:03:00.4]}
5... d5 {[%clk 0:02:57.4]} 6. e4 {[%clk 0:03:00.1]} 6... c5 {[%clk 0:02:52.5]}
7. Nc3 {[%clk 0:02:58.6]} 7... Be7 {[%clk 0:02:50.1]} 8. Re1 {[%clk 0:02:47.1]}
8... Nc6 {[%clk 0:02:43.5]} 9. exd5 {[%clk 0:02:37.1]} 9... exd5 {[%clk
0:02:40.8]} 10. Nh4 {[%clk 0:02:25.4]} 10... Qd7 {[%clk 0:01:52.3]} 11. Ne2
{[%clk 0:01:31.4]} 11... O-O {[%clk 0:01:39.5]} 12. d4 {[%clk 0:01:25.1]} 12...
Rfe8 {[%clk 0:01:34.3]} 13. c3 {[%clk 0:01:19.5]} 13... Rad8 {[%clk 0:01:18.5]}
14. h3 {[%clk 0:01:18.2]} 14... Ne4 {[%clk 0:01:14.4]} 15. Nf3 {[%clk
0:01:17.2]} 15... Bf6 {[%clk 0:01:10.1]} 16. Be3 {[%clk 0:01:16]} 16... c4
{[%clk 0:01:05.2]} 17. Nf4 {[%clk 0:01:14.2]} 17... g6 {[%clk 0:01:00.8]} 18.
Nd2 {[%clk 0:01:13.5]} 18... Ne7 {[%clk 0:00:42.6]} 19. Nxd5 {[%clk 0:00:59.9]}
19... Bxd5 {[%clk 0:00:31.6]} 20. Nxe4 {[%clk 0:00:58.8]} 20... Bxe4 {[%clk
0:00:29.7]} 21. Bxe4 {[%clk 0:00:59.7]} 21... Qxh3 {[%clk 0:00:28.4]} 22. Bg2
{[%clk 0:00:58]} 22... Qd7 {[%clk 0:00:26.2]} 23. Qf3 {[%clk 0:00:55.8]} 23...
Bg7 {[%clk 0:00:23.6]} 24. Bg5 {[%clk 0:00:53.9]} 24... Qd6 {[%clk 0:00:20.2]}
25. Re2 {[%clk 0:00:51.8]} 25... f6 {[%clk 0:00:18.4]} 26. Bf4 {[%clk
0:00:51.8]} 26... Qd7 {[%clk 0:00:18.9]} 27. Rae1 {[%clk 0:00:51.7]} 27... Kf7
{[%clk 0:00:18]} 28. Kh2 {[%clk 0:00:40.7]} 28... b5 {[%clk 0:00:18]} 29. Bh3
{[%clk 0:00:30.8]} 29... f5 {[%clk 0:00:18.3]} 30. Bg2 {[%clk 0:00:28.5]} 30...
a6 {[%clk 0:00:18.8]} 31. Qb7 {[%clk 0:00:25.5]} 31... Qxb7 {[%clk 0:00:15.3]}
32. Bxb7 {[%clk 0:00:26.4]} 32... a5 {[%clk 0:00:15.8]} 33. Ba6 {[%clk
0:00:22.6]} 33... Rd5 {[%clk 0:00:15.4]} 34. Bg5 {[%clk 0:00:18.7]} 34... Bf6
{[%clk 0:00:14.9]} 35. Bxf6 {[%clk 0:00:18.9]} 35... Kxf6 {[%clk 0:00:15.4]} 36.
Re6+ {[%clk 0:00:19.7]} 36... Kf7 {[%clk 0:00:15.8]} 37. Bb7 {[%clk 0:00:19.4]}
37... Rdd8 {[%clk 0:00:14.6]} 38. Ba6 {[%clk 0:00:19]} 38... Rd5 {[%clk
0:00:14.4]} 39. a4 {[%clk 0:00:19.6]} 39... bxa4 {[%clk 0:00:11.9]} 40. Bxc4
{[%clk 0:00:20.5]} 1-0

[Event "*** SCC Grand Prix: Titled Tuesday Blitz"]
[Site "Chess.com"]
[Date "2020.07.07"]
[Round "8"]
[White "poppy73"]
[Black "teacher4chess"]
[Result "1-0"]
[WhiteElo "2216"]
[BlackElo "2010"]
[TimeControl "180+1"]
[EndTime "11:36:17 PDT"]
[Termination "poppy73 won by resignation"]

1. e4 {[%clk 0:03:00.9]} 1... d6 {[%clk 0:02:57]} 2. d4 {[%clk 0:02:59.4]} 2...
e5 {[%clk 0:02:56.9]} 3. Nf3 {[%clk 0:02:58.4]} 3... exd4 {[%clk 0:02:54.1]} 4.
Nxd4 {[%clk 0:02:58.4]} 4... Nf6 {[%clk 0:02:54.2]} 5. Nc3 {[%clk 0:02:58.4]}
5... Be7 {[%clk 0:02:54.3]} 6. Be2 {[%clk 0:02:58.2]} 6... Nc6 {[%clk
0:02:52.9]} 7. O-O {[%clk 0:02:56.2]} 7... O-O {[%clk 0:02:45.7]} 8. Re1 {[%clk
0:02:55.6]} 8... Nxd4 {[%clk 0:02:42.3]} 9. Qxd4 {[%clk 0:02:55.4]} 9... b6
{[%clk 0:02:32.1]} 10. f4 {[%clk 0:02:51.5]} 10... Bb7 {[%clk 0:02:31]} 11. Bf3
{[%clk 0:02:51]} 11... Rb8 {[%clk 0:02:18.2]} 12. Be3 {[%clk 0:02:48.4]} 12...
Nd7 {[%clk 0:02:04.7]} 13. Rad1 {[%clk 0:02:41.2]} 13... Nc5 {[%clk 0:01:54.8]}
14. Nd5 {[%clk 0:02:37]} 14... Bxd5 {[%clk 0:01:45]} 15. Qxd5 {[%clk 0:02:34.9]}
15... Na4 {[%clk 0:01:32.1]} 16. Qb5 {[%clk 0:01:57.1]} 16... Qe8 {[%clk
0:01:25.2]} 17. Qb3 {[%clk 0:01:29.1]} 17... Nc5 {[%clk 0:01:23.2]} 18. Qd5
{[%clk 0:01:25.9]} 18... Bf6 {[%clk 0:01:17.5]} 19. e5 {[%clk 0:01:18.8]} 19...
dxe5 {[%clk 0:01:10.2]} 20. Bxc5 {[%clk 0:01:07.1]} 20... bxc5 {[%clk
0:01:09.3]} 21. fxe5 {[%clk 0:01:07.4]} 21... Bg5 {[%clk 0:00:53.5]} 22. b3
{[%clk 0:01:01.7]} 22... Qb5 {[%clk 0:00:47.1]} 23. a4 {[%clk 0:00:56.7]} 23...
Qb6 {[%clk 0:00:46.7]} 24. e6 {[%clk 0:00:53.4]} 24... fxe6 {[%clk 0:00:26.5]}
25. Rxe6 {[%clk 0:00:50.5]} 25... Qa5 {[%clk 0:00:20.9]} 26. Ra6+ {[%clk
0:00:45.6]} 26... Kh8 {[%clk 0:00:20.3]} 27. Rxa5 {[%clk 0:00:45.4]} 27... Rbd8
{[%clk 0:00:20.6]} 28. Qxd8 {[%clk 0:00:43]} 28... Bxd8 {[%clk 0:00:18.1]} 29.
Rxa7 {[%clk 0:00:42]} 29... Bf6 {[%clk 0:00:15.4]} 30. Rxc7 {[%clk 0:00:41.7]}
30... Bd4+ {[%clk 0:00:15.5]} 31. Kh1 {[%clk 0:00:42]} 31... g5 {[%clk
0:00:14.7]} 32. h3 {[%clk 0:00:41.3]} 32... h5 {[%clk 0:00:11.9]} 33. Re1 {[%clk
0:00:39]} 33... g4 {[%clk 0:00:11.4]} 34. hxg4 {[%clk 0:00:38.7]} 34... hxg4
{[%clk 0:00:11.4]} 35. Bxg4 {[%clk 0:00:39.1]} 35... Rf4 {[%clk 0:00:10.3]} 36.
Re8+ {[%clk 0:00:37.1]} 1-0

[Event "*** SCC Grand Prix: Titled Tuesday Blitz"]
[Site "Chess.com"]
[Date "2020.07.07"]
[Round "8"]
[White "CookiesAndIceCream"]
[Black "crazychessbr"]
[Result "1-0"]
[WhiteElo "2338"]
[BlackElo "2046"]
[TimeControl "180+1"]
[EndTime "11:36:18 PDT"]
[Termination "CookiesAndIceCream won on time"]

1. e4 {[%clk 0:03:00.9]} 1... e6 {[%clk 0:02:58.1]} 2. d4 {[%clk 0:03:00.1]}
2... d5 {[%clk 0:02:58.1]} 3. Nd2 {[%clk 0:02:57.7]} 3... Nc6 {[%clk 0:02:52.6]}
4. Ngf3 {[%clk 0:02:57]} 4... Nf6 {[%clk 0:02:51.8]} 5. e5 {[%clk 0:02:56.4]}
5... Nd7 {[%clk 0:02:51.7]} 6. Bd3 {[%clk 0:02:56.7]} 6... f6 {[%clk 0:02:51.5]}
7. Ng5 {[%clk 0:02:56.5]} 7... Ndxe5 {[%clk 0:02:50.1]} 8. dxe5 {[%clk
0:02:52.3]} 8... fxg5 {[%clk 0:02:50]} 9. Qh5+ {[%clk 0:02:52.1]} 9... g6 {[%clk
0:02:49.4]} 10. Bxg6+ {[%clk 0:02:51.8]} 10... Kd7 {[%clk 0:02:49.8]} 11. c4
{[%clk 0:02:48.9]} 11... dxc4 {[%clk 0:02:22.3]} 12. Nxc4 {[%clk 0:02:38.3]}
12... hxg6 {[%clk 0:02:21]} 13. Qxg6 {[%clk 0:01:26.8]} 13... Bb4+ {[%clk
0:02:11.3]} 14. Kf1 {[%clk 0:01:08.4]} 14... b6 {[%clk 0:01:50.6]} 15. Bxg5
{[%clk 0:01:04.8]} 15... Qg8 {[%clk 0:00:59.3]} 16. Rd1+ {[%clk 0:00:59.7]}
16... Bd6 {[%clk 0:00:58.5]} 17. Qxg8 {[%clk 0:00:40.3]} 17... Rxg8 {[%clk
0:00:57.6]} 18. Bf4 {[%clk 0:00:40.5]} 18... Ba6 {[%clk 0:00:55.2]} 19. b3
{[%clk 0:00:33]} 19... Raf8 {[%clk 0:00:52.3]} 20. Bg3 {[%clk 0:00:31.2]} 20...
Bxc4+ {[%clk 0:00:45.1]} 21. bxc4 {[%clk 0:00:29.8]} 21... Rxg3 {[%clk
0:00:44.8]} 22. hxg3 {[%clk 0:00:30.2]} 22... Nxe5 {[%clk 0:00:44.8]} 23. Rd4
{[%clk 0:00:21.5]} 23... c5 {[%clk 0:00:34.3]} 24. Re4 {[%clk 0:00:20.2]} 24...
Nd3 {[%clk 0:00:30]} 25. Rh7+ {[%clk 0:00:20.1]} 25... Kc6 {[%clk 0:00:29.5]}
26. f3 {[%clk 0:00:20.5]} 26... e5 {[%clk 0:00:23.4]} 27. Rxa7 {[%clk 0:00:20]}
27... Rh8 {[%clk 0:00:19.1]} 28. Ke2 {[%clk 0:00:19.8]} 28... Nb4 {[%clk
0:00:18.4]} 29. a3 {[%clk 0:00:20.2]} 29... Na2 {[%clk 0:00:15.6]} 30. Kd3
{[%clk 0:00:20.2]} 30... Rh2 {[%clk 0:00:14.4]} 31. g4 {[%clk 0:00:20.4]} 31...
Rxg2 {[%clk 0:00:13.6]} 32. Rh7 {[%clk 0:00:20.3]} 32... Nc1+ {[%clk 0:00:13]}
33. Kc3 {[%clk 0:00:20.2]} 33... Ne2+ {[%clk 0:00:08.7]} 34. Kb3 {[%clk
0:00:20]} 34... Nf4 {[%clk 0:00:08.1]} 35. Rh6 {[%clk 0:00:19.5]} 35... Kc7
{[%clk 0:00:07.7]} 36. Rh7+ {[%clk 0:00:19.1]} 36... Kc6 {[%clk 0:00:07.6]} 37.
Rh6 {[%clk 0:00:20]} 37... Kc7 {[%clk 0:00:07.4]} 38. Ka4 {[%clk 0:00:20.5]}
38... Rb2 {[%clk 0:00:04.6]} 39. Re3 {[%clk 0:00:19.5]} 39... Rb3 {[%clk
0:00:01.3]} 40. Rxb3 {[%clk 0:00:19.6]} 1-0